[Event "94th Paris-ch  2019"]
[Site "Paris"]
[Date "2019.07.13"]
[Round "8.3"]
[White "Chalmeta Ugas, Ramon"]
[Black "Bonte, Andrei-Mihai"]
[Result "1/2-1/2"]
[ECO "B31"]
[WhiteElo "2232"]
[BlackElo "2337"]
[Annotator "ChessBase"]
[PlyCount "91"]
[EventDate "2019.07.07"]
[EventType "swiss"]
[EventCountry "FRA"]
[SourceTitle "playchess.com"]
[Source "ChessBase"]
[SourceQuality "1"]
[TimeControl "5400+30"]

1. e4 {[%emt 0:00:00]} c5 {[%emt 0:01:38]} 2. Nf3 {[%emt 0:00:00]} Nc6 {[%emt 0:00:10]} 3. Bb5 {[%emt 0:00:02]} g6 {[%emt 0:01:04]} 4. Bxc6 {[%emt 0:00:26]} bxc6 {[%emt 0:00:42]} 5. c3 {[%emt 0:00:28]} Nf6 {[%emt 0:09:31]} 6. d3 {[%emt 0:03:24]} Bg7 {[%emt 0:02:17]} 7. O-O {[%emt 0:00:20]} O-O {[%emt 0:00:22]} 8. Re1 {[%emt 0:03:06]} d6 {[%emt 0:05:43]} 9. h3 {[%emt 0:01:39]} Rb8 {[%emt 0:02:26]} 10. Nbd2 {[%emt 0:08:20]} e5 {[%emt 0:16:05]} 11. Qc2 {[%emt 0:05:00]} Nh5 {[%emt 0:06:04]} 12. d4 {[%emt 0:05:17]} cxd4 {[%emt 0:00:10]} 13. cxd4 {[%emt 0:00:08]} exd4 {[%emt 0:00:04]} 14. Qxc6 {[%emt 0:01:55]} Nf4 {[%emt 0:00:02]} 15. Nc4 {[%emt 0:25:10]} Nd3 {[%emt 0:01:35]} 16. Rd1 {[%emt 0:06:33]} Ne5 {[%emt 0:20:27]} 17. Qxd6 {[%emt 0:05:36]} Nxf3+ {[%emt 0:00:23]} 18. gxf3 {[%emt 0:00:11]} Qxd6 {[%emt 0:00:43]} 19. Nxd6 {[%emt 0:00:11]} Bxh3 {[%emt 0:00:05]} 20. b3 {[%emt 0:06:48]} Be6 {[%emt 0:03:35]} 21. Ba3 {[%emt 0:05:09]} Rfd8 {[%emt 0:00:41]} 22. Rac1 {[%emt 0:00:48]} Rb6 {[%emt 0:03:08]} 23. Nc4 {[%emt 0:04:32]} Ra6 {[%emt 0:00:06]} 24. Rd3 {[%emt 0:01:22]} Rc8 {[%emt 0:03:44]} 25. Bb2 {[%emt 0:05:26]} Rxa2 {[%emt 0:09:24]} 26. Bxd4 {[%emt 0:00:09]} Bxd4 {[%emt 0:00:22]} 27. Rxd4 {[%emt 0:00:11]} a5 {[%emt 0:02:42]} 28. Rb1 {[%emt 0:02:46]} a4 {[%emt 0:01:12]} 29. Nb6 {[%emt 0:00:28]} Rcc2 {[%emt 0:03:18]} 30. Rxa4 {[%emt 0:00:07]} Rxf2 {[%emt 0:00:12]} 31. Rxa2 {[%emt 0:00:05]} Rxa2 {[%emt 0:00:05]} 32. b4 {[%emt 0:00:31]} Ra6 {[%emt 0:00:31]} 33. Nd5 {[%emt 0:00:17]} Bxd5 {[%emt 0:00:15]} 34. exd5 {[%emt 0:00:35]} Kf8 {[%emt 0:01:52]} 35. b5 {[%emt 0:01:56]} Rb6 {[%emt 0:00:11]} 36. Kf2 {[%emt 0:00:05]} Ke7 {[%emt 0:00:09]} 37. Ke3 {[%emt 0:00:05]} Kd6 {[%emt 0:00:08]} 38. Kd4 {[%emt 0:00:04]} Rb7 {[%emt 0:00:29]} 39. b6 {[%emt 0:00:20]} h5 {[%emt 0:01:06]} 40. f4 {[%emt 0:00:40]} f6 {[%emt 0:01:36]} 41. Rg1 {[%emt 0:01:02]} Rxb6 {[%emt 0:00:13]} 42. Rxg6 {[%emt 0:00:02]} Rb4+ {[%emt 0:00:15]} 43. Ke3 {[%emt 0:00:06]} Kxd5 {[%emt 0:00:26]} 44. Rxf6 {[%emt 0:00:10]} Rb3+ {[%emt 0:00:08]} 45. Kf2 {[%emt 0:00:09]} Ke4 {[%emt 0:01:08]} 46. Rh6 {[%emt 0:05:57] Ke5} 1/2-1/2

[Event "94th Paris-ch  2019"]
[Site "Paris"]
[Date "2019.07.13"]
[Round "8.4"]
[White "Albaric, Etienne"]
[Black "Moksh Amit Doshi"]
[Result "0-1"]
[ECO "B51"]
[WhiteElo "2225"]
[BlackElo "2229"]
[Annotator "ChessBase"]
[PlyCount "105"]
[EventDate "2019.07.07"]
[EventType "swiss"]
[EventCountry "FRA"]
[SourceTitle "playchess.com"]
[Source "ChessBase"]
[SourceQuality "1"]
[TimeControl "5400+30"]

1. e4 {[%emt 0:00:38]} c5 {[%emt 0:00:52]} 2. Nf3 {[%emt 0:00:03]} d6 {[%emt 0:00:07]} 3. Bb5+ {[%emt 0:00:03]} Nd7 {[%emt 0:00:09]} 4. O-O {[%emt 0:01:43]} a6 {[%emt 0:00:06]} 5. Bd3 {[%emt 0:00:04]} Ngf6 {[%emt 0:00:10]} 6. c3 {[%emt 0:01:16]} b5 {[%emt 0:00:09]} 7. Bc2 {[%emt 0:00:46]} Bb7 {[%emt 0:00:12]} 8. Re1 {[%emt 0:00:36]} c4 {[%emt 0:00:18]} 9. b4 {[%emt 0:08:23]} e5 {[%emt 0:02:13]} 10. d4 {[%emt 0:06:55]} cxd3 {[%emt 0:00:07]} 11. Bxd3 {[%emt 0:00:00]} Be7 {[%emt 0:00:18]} 12. a4 {[%emt 0:04:07]} O-O {[%emt 0:02:03]} 13. Nbd2 {[%emt 0:00:01]} Qb6 {[%emt 0:05:33]} 14. Qe2 {[%emt 0:10:20]} Bc6 {[%emt 0:06:20]} 15. Nb3 {[%emt 0:11:06]} d5 {[%emt 0:05:48]} 16. exd5 {[%emt 0:08:00]} Bxd5 {[%emt 0:05:02]} 17. Bc2 {[%emt 0:00:13]} bxa4 {[%emt 0:07:12]} 18. Na5 {[%emt 0:05:45]} Rfc8 {[%emt 0:03:46]} 19. Be3 {[%emt 0:06:12]} Qb8 {[%emt 0:04:10]} 20. Rec1 {[%emt 0:01:27]} e4 {[%emt 0:00:56]} 21. Nd4 {[%emt 0:05:47]} Rxc3 {[%emt 0:02:06]} 22. Rxa4 {[%emt 0:00:39]} Nb6 {[%emt 0:02:17]} 23. Raa1 {[%emt 0:01:07]} Bxb4 {[%emt 0:04:36]} 24. Bd2 {[%emt 0:00:26]} Bxa5 {[%emt 0:00:57]} 25. Rxa5 {[%emt 0:00:10]} Rc8 {[%emt 0:00:35]} 26. Nf5 {[%emt 0:02:24]} Qe5 {[%emt 0:03:51]} 27. Ne3 {[%emt 0:00:40]} Qe6 {[%emt 0:00:10]} 28. Rb1 {[%emt 0:02:30]} Nc4 {[%emt 0:02:50]} 29. Nxc4 {[%emt 0:02:28]} Bxc4 {[%emt 0:00:33]} 30. Qe3 Rab8 {[%emt 0:02:22]} 31. Rxb8 {[%emt 0:02:16]} Rxb8 {[%emt 0:00:05]} 32. Bc3 {[%emt 0:00:01]} Bd3 {[%emt 0:07:16]} 33. Bxd3 {[%emt 0:16:46]} exd3 {[%emt 0:00:06]} 34. Qxd3 {[%emt 0:00:07]} Qb3 {[%emt 0:00:14]} 35. h3 {[%emt 0:00:58]} Ne8 {[%emt 0:04:01]} 36. Qd4 {[%emt 0:00:45]} Rc8 {[%emt 0:01:08]} 37. Re5 {[%emt 0:01:26]} f6 {[%emt 0:01:30]} 38. Re3 {[%emt 0:00:18]} Qb5 {[%emt 0:00:48]} 39. Rg3 {[%emt 0:01:10]} Qb1+ {[%emt 0:01:38]} 40. Kh2 {[%emt 0:00:01]} Qb7 {[%emt 0:00:14]} 41. h4 {[%emt 0:00:28]} Qf7 {[%emt 0:00:23]} 42. Qb6 {[%emt 0:01:14]} Rc4 {[%emt 0:03:10]} 43. Qxa6 {[%emt 0:00:03]} Rxh4+ {[%emt 0:00:16]} 44. Kg1 {[%emt 0:00:25]} Qh5 {[%emt 0:05:24]} 45. Qe6+ {[%emt 0:00:11]} Kh8 {[%emt 0:00:05]} 46. f3 {[%emt 0:01:34]} Qc5+ {[%emt 0:01:54]} 47. Kf1 {[%emt 0:00:02]} Rh1+ {[%emt 0:02:10]} 48. Ke2 {[%emt 0:00:01]} Qb5+ {[%emt 0:00:34]} 49. Kd2 {[%emt 0:00:54]} Rf1 {[%emt 0:01:25]} 50. Bd4 {[%emt 0:01:21]} Qb4+ {[%emt 0:01:56]} 51. Bc3 {[%emt 0:00:22]} Qb5 {[%emt 0:01:03]} 52. Bd4 {[%emt 0:01:02]} Qa4 {[%emt 0:00:05]} 53. Ke2 {[%emt 0:00:43]} 0-1

[Event "94th Paris-ch  2019"]
[Site "Paris"]
[Date "2019.07.13"]
[Round "8.8"]
[White "Anand Nadar"]
[Black "Samoun, Florent"]
[Result "1-0"]
[ECO "E16"]
[WhiteElo "2358"]
[BlackElo "2230"]
[Annotator "ChessBase"]
[PlyCount "121"]
[EventDate "2019.07.07"]
[EventType "swiss"]
[EventCountry "FRA"]
[SourceTitle "playchess.com"]
[Source "ChessBase"]
[SourceQuality "1"]
[TimeControl "5400+30"]

1. Nf3 {[%emt 0:00:00]} e6 {[%emt 0:00:00]} 2. c4 {[%emt 0:00:26]} Nf6 {[%emt 0:00:03]} 3. g3 {[%emt 0:00:14]} b6 {[%emt 0:01:52]} 4. Bg2 {[%emt 0:01:24]} Bb7 {[%emt 0:00:12]} 5. d4 {[%emt 0:03:23]} c5 {[%emt 0:03:40]} 6. d5 {[%emt 0:15:27]} exd5 {[%emt 0:03:13]} 7. Nh4 {[%emt 0:00:45]} g6 {[%emt 0:07:22]} 8. Nc3 {[%emt 0:04:04]} Bg7 {[%emt 0:01:30]} 9. cxd5 {[%emt 0:01:30]} O-O {[%emt 0:01:02]} 10. O-O {[%emt 0:00:13]} a6 {[%emt 0:04:46]} 11. a4 {[%emt 0:02:46]} d6 {[%emt 0:00:43]} 12. Nf3 {[%emt 0:03:05]} Nbd7 {[%emt 0:06:51]} 13. Nd2 {[%emt 0:08:45]} b5 {[%emt 0:05:04]} 14. axb5 {[%emt 0:01:09]} axb5 {[%emt 0:15:53]} 15. Rxa8 {[%emt 0:00:33]} Qxa8 {[%emt 0:02:08]} 16. Nxb5 {[%emt 0:00:15]} Nxd5 {[%emt 0:08:47]} 17. Nc4 {[%emt 0:11:49]} N7f6 {[%emt 0:04:31]} 18. Nbxd6 {[%emt 0:02:45]} Bc6 {[%emt 0:04:48]} 19. Ne5 {[%emt 0:02:05]} Nb4 {[%emt 0:05:31]} 20. Nxc6 {[%emt 0:03:09]} Nxc6 {[%emt 0:00:04]} 21. Qc2 {[%emt 0:11:40]} Nd4 {[%emt 0:02:24]} 22. Qxc5 {[%emt 0:04:29]} Nxe2+ {[%emt 0:00:45]} 23. Kh1 {[%emt 0:00:01]} Qa2 {[%emt 0:02:21]} 24. b4 {[%emt 0:09:36]} Nxc1 {[%emt 0:07:29]} 25. Rxc1 {[%emt 0:00:42]} h5 {[%emt 0:00:12]} 26. Bf3 {[%emt 0:03:07]} Qb2 {[%emt 0:00:35]} 27. Rc2 {[%emt 0:01:27]} Qb1+ {[%emt 0:00:14]} 28. Rc1 {[%emt 0:00:06]} Qb2 {[%emt 0:00:04]} 29. Rf1 {[%emt 0:03:16]} Nd7 {[%emt 0:00:57]} 30. Qb5 {[%emt 0:02:54]} Ne5 {[%emt 0:00:49]} 31. Nc4 {[%emt 0:00:20]} Nxc4 {[%emt 0:03:10]} 32. Qxc4 {[%emt 0:00:01]} Rb8 {[%emt 0:01:07]} 33. Bd5 {[%emt 0:00:38]} Rxb4 {[%emt 0:01:44]} 34. Bxf7+ {[%emt 0:00:38]} Kh7 {[%emt 0:00:31]} 35. Qc6 {[%emt 0:03:24]} Qf6 {[%emt 0:03:02]} 36. Qxf6 {[%emt 0:00:27]} Bxf6 {[%emt 0:00:05]} 37. Rd1 {[%emt 0:00:14]} Rd4 {[%emt 0:00:35]} 38. Rc1 {[%emt 0:00:17]} Rd2 {[%emt 0:00:28]} 39. f4 {[%emt 0:00:19]} Rd7 {[%emt 0:02:57]} 40. Bb3 {[%emt 0:00:12]} Kg7 {[%emt 0:00:54]} 41. Kg2 {[%emt 0:01:15]} h4 {[%emt 0:00:42]} 42. Rc5 {[%emt 0:01:01]} hxg3 {[%emt 0:00:18]} 43. hxg3 {[%emt 0:00:02]} Be7 {[%emt 0:01:33]} 44. Rc8 {[%emt 0:00:29]} Bd8 {[%emt 0:00:20]} 45. Rc5 {[%emt 0:01:14]} Be7 {[%emt 0:00:27]} 46. Rb5 {[%emt 0:00:06]} Bd8 {[%emt 0:00:41]} 47. Kh3 {[%emt 0:00:11]} Bf6 {[%emt 0:00:32]} 48. Kg4 {[%emt 0:00:06]} Bd8 {[%emt 0:00:27]} 49. Bc2 {[%emt 0:00:08]} Rc7 {[%emt 0:00:27]} 50. Rb8 {[%emt 0:00:35]} Rxc2 {[%emt 0:00:30]} 51. Rxd8 {[%emt 0:00:01]} Rc5 {[%emt 0:00:24]} 52. Re8 {[%emt 0:00:14]} Rc3 {[%emt 0:00:42]} 53. Kh4 {[%emt 0:00:28]} Kf6 {[%emt 0:00:30]} 54. Rf8+ {[%emt 0:00:38]} Kg7 {[%emt 0:00:12]} 55. Rb8 {[%emt 0:00:04]} Rc5 {[%emt 0:00:25]} 56. Rb7+ {[%emt 0:00:30]} Kf6 {[%emt 0:00:27]} 57. Rb6+ {[%emt 0:00:10]} Kf7 {[%emt 0:00:20]} 58. Kg4 {[%emt 0:01:41]} Ra5 {[%emt 0:00:21]} 59. Rb1 {[%emt 0:00:43]} Kf6 {[%emt 0:00:22]} 60. Re1 {[%emt 0:00:25]} g5 {[%emt 0:00:59]} 61. Re5 {[%emt 0:00:12]} 1-0

[Event "94th Paris-ch  2019"]
[Site "Paris"]
[Date "2019.07.13"]
[Round "8.10"]
[White "Dixit, Nikhil"]
[Black "Tomasi, Albert"]
[Result "1-0"]
[ECO "B92"]
[WhiteElo "2318"]
[BlackElo "2300"]
[Annotator "ChessBase"]
[PlyCount "95"]
[EventDate "2019.07.07"]
[EventType "swiss"]
[EventCountry "FRA"]
[SourceTitle "playchess.com"]
[Source "ChessBase"]
[SourceQuality "1"]
[TimeControl "5400+30"]

1. e4 {[%emt 0:00:00]} c5 {[%emt 0:02:45]} 2. Nf3 {[%emt 0:00:00]} d6 {[%emt 0:00:05]} 3. d4 {[%emt 0:00:00]} cxd4 {[%emt 0:00:06]} 4. Nxd4 {[%emt 0:00:00]} Nf6 {[%emt 0:00:06]} 5. Nc3 {[%emt 0:00:00]} a6 {[%emt 0:00:06]} 6. Be2 {[%emt 0:00:01]} Nbd7 {[%emt 0:00:39]} 7. Be3 {[%emt 0:01:38]} g6 {[%emt 0:10:55]} 8. a4 {[%emt 0:01:16]} Bg7 {[%emt 0:00:17]} 9. a5 {[%emt 0:07:31]} O-O {[%emt 0:16:10]} 10. O-O {[%emt 0:03:29]} Ne5 {[%emt 0:04:22]} 11. h3 {[%emt 0:04:41]} Bd7 {[%emt 0:01:52]} 12. f4 {[%emt 0:14:55]} Nc6 {[%emt 0:00:06]} 13. Nxc6 {[%emt 0:02:33]} Bxc6 {[%emt 0:00:26]} 14. Bf3 {[%emt 0:02:34]} e5 {[%emt 0:13:56]} 15. fxe5 {[%emt 0:09:49]} dxe5 {[%emt 0:00:07]} 16. Qxd8 {[%emt 0:08:32]} Rfxd8 {[%emt 0:03:18]} 17. Rfd1 {[%emt 0:00:33]} Bf8 {[%emt 0:03:13]} 18. Bb6 {[%emt 0:06:31]} Rxd1+ {[%emt 0:00:49]} 19. Rxd1 {[%emt 0:00:09]} Nd7 {[%emt 0:00:12]} 20. Be3 {[%emt 0:01:31]} Bb4 {[%emt 0:26:08]} 21. Nd5 {[%emt 0:09:55]} Bxd5 {[%emt 0:00:05]} 22. Rxd5 {[%emt 0:12:47]} Nf6 {[%emt 0:00:29]} 23. Rxe5 {[%emt 0:00:50]} Bd6 {[%emt 0:05:20]} 24. Rg5 {[%emt 0:00:29]} Re8 {[%emt 0:07:49]} 25. Bd4 {[%emt 0:08:45]} h6 {[%emt 0:00:05]} 26. e5 {[%emt 0:01:40]} hxg5 {[%emt 0:01:48]} 27. exd6 {[%emt 0:00:18]} Re6 {[%emt 0:00:05]} 28. Bxb7 {[%emt 0:02:00]} Nd7 {[%emt 0:00:14]} 29. b4 {[%emt 0:00:47]} Rxd6 {[%emt 0:00:05]} 30. c3 {[%emt 0:00:20]} f5 {[%emt 0:02:50]} 31. b5 {[%emt 0:00:46]} axb5 {[%emt 0:00:19]} 32. a6 {[%emt 0:00:16]} Rxd4 {[%emt 0:00:16]} 33. cxd4 {[%emt 0:00:10]} Nb6 {[%emt 0:00:03]} 34. a7 {[%emt 0:00:13]} Kf7 {[%emt 0:00:04]} 35. a8=Q {[%emt 0:00:51]} Nxa8 {[%emt 0:00:04]} 36. Bxa8 {[%emt 0:00:03]} Ke6 {[%emt 0:00:05]} 37. Bc6 {[%emt 0:01:39]} b4 {[%emt 0:00:05]} 38. Ba4 {[%emt 0:00:08]} Kd5 {[%emt 0:00:05]} 39. Be8 {[%emt 0:00:55]} Kxd4 {[%emt 0:01:53]} 40. Bxg6 {[%emt 0:00:24]} Ke5 {[%emt 0:01:53]} 41. Kf2 {[%emt 0:00:35]} b3 {[%emt 0:00:38]} 42. Bf7 {[%emt 0:00:18]} b2 {[%emt 0:00:04]} 43. Ba2 {[%emt 0:00:05]} g4 {[%emt 0:01:01]} 44. hxg4 {[%emt 0:00:20]} fxg4 {[%emt 0:00:07]} 45. Kg3 {[%emt 0:00:14]} Kf5 {[%emt 0:00:05]} 46. Kh4 {[%emt 0:00:06]} Kf4 {[%emt 0:00:04]} 47. g3+ {[%emt 0:00:03]} Kf3 {[%emt 0:00:06]} 48. Bb1 {[%emt 0:00:03]} 1-0

[Event "94th Paris-ch  2019"]
[Site "Paris"]
[Date "2019.07.13"]
[Round "8.11"]
[White "Bergez, Luc"]
[Black "Dutreuil, Raphael"]
[Result "1-0"]
[ECO "B40"]
[WhiteElo "2308"]
[BlackElo "2302"]
[Annotator "ChessBase"]
[PlyCount "69"]
[EventDate "2019.07.07"]
[EventType "swiss"]
[EventCountry "FRA"]
[SourceTitle "playchess.com"]
[Source "ChessBase"]
[SourceQuality "1"]
[TimeControl "5400+30"]

1. e4 {[%emt 0:35:05]} c5 {[%emt 0:00:00]} 2. Nf3 {[%emt 0:00:10]} e6 {[%emt 0:00:00]} 3. b3 {[%emt 0:00:11]} a6 {[%emt 0:01:13]} 4. Bb2 {[%emt 0:00:09]} Nc6 {[%emt 0:00:06]} 5. Bd3 {[%emt 0:01:34]} d6 {[%emt 0:01:02]} 6. O-O {[%emt 0:00:21]} e5 {[%emt 0:01:36]} 7. Nc3 {[%emt 0:07:25]} g6 {[%emt 0:02:28]} 8. Nd5 {[%emt 0:02:07]} Bg7 {[%emt 0:01:24]} 9. Ne1 {[%emt 0:02:00]} Nge7 {[%emt 0:14:55]} 10. f4 {[%emt 0:02:07]} O-O {[%emt 0:08:03]} 11. c4 {[%emt 0:04:29]} Nd4 {[%emt 0:09:43]} 12. Nxe7+ {[%emt 0:03:45]} Qxe7 {[%emt 0:00:06]} 13. Nc2 {[%emt 0:00:42]} exf4 {[%emt 0:06:47]} 14. Nxd4 {[%emt 0:05:03]} cxd4 {[%emt 0:00:20]} 15. Rxf4 {[%emt 0:05:04]} Be5 {[%emt 0:00:42]} 16. Qf1 {[%emt 0:00:38]} Bxf4 {[%emt 0:04:38]} 17. Qxf4 {[%emt 0:00:07]} Qe5 {[%emt 0:00:10]} 18. Qf2 {[%emt 0:00:15]} f5 {[%emt 0:05:27]} 19. Bxd4 {[%emt 0:02:18]} Qe7 {[%emt 0:06:38]} 20. Re1 {[%emt 0:08:44]} fxe4 {[%emt 0:08:16]} 21. Qe3 {[%emt 0:00:15]} Bf5 {[%emt 0:08:49]} 22. g4 {[%emt 0:00:24]} Qf7 {[%emt 0:00:11]} 23. Bc3 {[%emt 0:06:42]} Rae8 {[%emt 0:12:46]} 24. Be2 {[%emt 0:05:49]} Bd7 {[%emt 0:02:12]} 25. b4 {[%emt 0:00:41]} Qf4 {[%emt 0:02:00]} 26. Qd4 {[%emt 0:00:08]} Qe5 {[%emt 0:00:11]} 27. Qb6 {[%emt 0:00:54]} Qf4 {[%emt 0:02:37]} 28. Rf1 {[%emt 0:00:44]} Qg5 {[%emt 0:00:01]} 29. Rxf8+ {[%emt 0:00:23]} Rxf8 {[%emt 0:00:03]} 30. Qxd6 {[%emt 0:00:28]} Bxg4 {[%emt 0:00:38]} 31. Qg3 {[%emt 0:00:14]} h5 {[%emt 0:01:46]} 32. h3 {[%emt 0:00:23]} e3 {[%emt 0:00:40]} 33. dxe3 {[%emt 0:01:30]} Qf5 {[%emt 0:00:24]} 34. hxg4 {[%emt 0:00:14]} Qc2 {[%emt 0:00:15]} 35. Qe5 {[%emt 0:00:49]} 1-0

[Event "94th Paris-ch  2019"]
[Site "Paris"]
[Date "2019.07.13"]
[Round "8.12"]
[White "Le Goff, Ronan"]
[Black "Ojas Kulkarni"]
[Result "1/2-1/2"]
[ECO "A30"]
[WhiteElo "2281"]
[BlackElo "2251"]
[Annotator "ChessBase"]
[PlyCount "64"]
[EventDate "2019.07.07"]
[EventType "swiss"]
[EventCountry "FRA"]
[SourceTitle "playchess.com"]
[Source "ChessBase"]
[SourceQuality "1"]
[TimeControl "5400+30"]

1. d4 {[%emt 0:09:55]} Nf6 {[%emt 0:00:00]} 2. Nf3 {[%emt 0:01:35]} g6 {[%emt 0:00:00]} 3. c4 {[%emt 0:00:14]} Bg7 {[%emt 0:00:00]} 4. g3 {[%emt 0:00:11]} b6 {[%emt 0:02:46]} 5. Bg2 {[%emt 0:00:48]} Bb7 {[%emt 0:00:06]} 6. O-O {[%emt 0:01:04]} O-O {[%emt 0:00:05]} 7. b3 {[%emt 0:03:34]} c5 {[%emt 0:01:20]} 8. Bb2 {[%emt 0:01:03]} cxd4 {[%emt 0:00:09]} 9. Qxd4 {[%emt 0:02:36]} d6 {[%emt 0:03:32]} 10. Ne1 {[%emt 0:12:37]} Bxg2 {[%emt 0:01:08]} 11. Nxg2 {[%emt 0:02:21]} Nc6 {[%emt 0:14:44]} 12. Qh4 {[%emt 0:07:51]} Qc8 {[%emt 0:06:06]} 13. Nd2 {[%emt 0:21:30]} h6 {[%emt 0:03:04]} 14. f4 {[%emt 0:04:19]} Qf5 {[%emt 0:03:10]} 15. Rad1 {[%emt 0:07:36]} Ne4 {[%emt 0:04:20]} 16. Nxe4 {[%emt 0:01:51]} Qxe4 {[%emt 0:01:03]} 17. Bxg7 {[%emt 0:00:21]} Kxg7 {[%emt 0:00:02]} 18. e3 {[%emt 0:02:24]} Rad8 {[%emt 0:00:53]} 19. Qg4 {[%emt 0:03:08]} d5 {[%emt 0:32:08]} 20. cxd5 {[%emt 0:01:12]} f5 {[%emt 0:00:28]} 21. Qf3 {[%emt 0:04:25]} Qxf3 {[%emt 0:00:13]} 22. Rxf3 {[%emt 0:00:08]} Nb4 {[%emt 0:00:05]} 23. Rd4 {[%emt 0:03:22]} Nxd5 {[%emt 0:02:14]} 24. e4 {[%emt 0:00:49]} Nf6 {[%emt 0:02:45]} 25. Rxd8 {[%emt 0:00:18]} Rxd8 {[%emt 0:00:02]} 26. exf5 {[%emt 0:00:13]} gxf5 {[%emt 0:00:15]} 27. Ne3 {[%emt 0:01:14]} e6 {[%emt 0:00:05]} 28. Rf2 {[%emt 0:02:59]} Rd3 {[%emt 0:03:03]} 29. Nc4 {[%emt 0:00:39]} b5 {[%emt 0:04:44]} 30. Ne5 {[%emt 0:00:30]} Rd1+ {[%emt 0:00:05]} 31. Rf1 {[%emt 0:01:38]} Rd2 {[%emt 0:00:07]} 32. Rf2 {[%emt 0:00:05]} Rd1+ {[%emt 0:00:04]} 1/2-1/2

[Event "94th Paris-ch  2019"]
[Site "Paris"]
[Date "2019.07.13"]
[Round "8.13"]
[White "Lux, Hugo de Melo"]
[Black "Sanchez, Louis"]
[Result "1-0"]
[ECO "C42"]
[WhiteElo "2231"]
[BlackElo "2316"]
[Annotator "ChessBase"]
[PlyCount "79"]
[EventDate "2019.07.07"]
[EventType "swiss"]
[EventCountry "FRA"]
[SourceTitle "playchess.com"]
[Source "ChessBase"]
[SourceQuality "1"]
[TimeControl "5400+30"]

1. e4 {[%emt 0:00:00]} e5 {[%emt 0:00:00]} 2. Nf3 {[%emt 0:00:36]} Nf6 {[%emt 0:00:00]} 3. Nxe5 {[%emt 0:00:06]} d6 {[%emt 0:00:09]} 4. Nf3 {[%emt 0:00:04]} Nxe4 {[%emt 0:00:09]} 5. Nc3 {[%emt 0:00:07]} Nxc3 {[%emt 0:01:19]} 6. dxc3 {[%emt 0:00:01]} Be7 {[%emt 0:00:34]} 7. Be3 {[%emt 0:00:05]} Nc6 {[%emt 0:00:33]} 8. Qd2 {[%emt 0:00:06]} Be6 {[%emt 0:01:08]} 9. O-O-O {[%emt 0:00:20]} Qd7 {[%emt 0:00:23]} 10. Kb1 {[%emt 0:00:25]} h6 {[%emt 0:01:40]} 11. Nd4 {[%emt 0:01:12]} Nxd4 {[%emt 0:01:50]} 12. Bxd4 {[%emt 0:01:23]} O-O {[%emt 0:06:15]} 13. Be2 {[%emt 0:15:31]} Rfe8 {[%emt 0:07:57]} 14. Rhg1 {[%emt 0:20:26]} Bf8 {[%emt 0:04:04]} 15. Bf3 {[%emt 0:03:50]} Bg4 {[%emt 0:17:45]} 16. Qf4 {[%emt 0:03:37]} Bxf3 {[%emt 0:03:11]} 17. Qxf3 {[%emt 0:01:34]} Qb5 {[%emt 0:03:21]} 18. g4 {[%emt 0:08:18]} Re6 {[%emt 0:04:22]} 19. h4 {[%emt 0:13:04]} Qc6 {[%emt 0:06:26]} 20. Qg3 {[%emt 0:01:49]} Rae8 {[%emt 0:01:49]} 21. h5 {[%emt 0:09:27]} Be7 {[%emt 0:09:06]} 22. f4 {[%emt 0:02:35]} Bf6 {[%emt 0:00:38]} 23. Bxf6 {[%emt 0:00:43]} gxf6 {[%emt 0:02:59]} 24. g5 {[%emt 0:01:07]} Re3 {[%emt 0:02:03]} 25. Qh4 {[%emt 0:02:13]} fxg5 {[%emt 0:14:23]} 26. fxg5 {[%emt 0:00:01]} d5 {[%emt 0:00:17]} 27. gxh6+ {[%emt 0:03:08]} Kh7 {[%emt 0:02:01]} 28. Rg7+ {[%emt 0:05:15]} Kh8 {[%emt 0:00:09]} 29. Qd4 {[%emt 0:00:05]} R8e5 {[%emt 0:04:34]} 30. Rxf7 {[%emt 0:02:08]} Qxh6 {[%emt 0:01:34]} 31. Rxc7 {[%emt 0:01:39]} Qxh5 {[%emt 0:00:49]} 32. a3 {[%emt 0:01:54]} R3e4 {[%emt 0:02:31]} 33. Qg1 {[%emt 0:00:59]} Rg4 {[%emt 0:00:48]} 34. Qxa7 {[%emt 0:01:11]} Rg8 {[%emt 0:00:50]} 35. Rc1 {[%emt 0:00:40]} Qh6 {[%emt 0:01:16]} 36. Qd4 {[%emt 0:00:49]} Rgg5 {[%emt 0:00:29]} 37. Re1 {[%emt 0:00:29]} Qf6 {[%emt 0:00:18]} 38. Qh4+ {[%emt 0:00:44]} Kg8 {[%emt 0:00:34]} 39. Qh7+ {[%emt 0:00:01]} Kf8 {[%emt 0:00:11]} 40. Rc8+ {[%emt 0:00:04]} 1-0